[Event "13th KIIT Festival-A 2022"]
[Site "Bhubaneswar"]
[Date "2022.05.28"]
[Round "9.18"]
[White "Adireddy Arjun"]
[Black "Alekhya Mukhopadhyay"]
[Result "0-1"]
[ECO "B48"]
[WhiteElo "1898"]
[BlackElo "2162"]
[Annotator "TA"]
[PlyCount "84"]
[EventDate "2022.05.15"]
[EventType "swiss"]
[EventCountry "IND"]
[SourceTitle "playchess.com"]
[Source "ChessBase"]
[SourceQuality "1"]
[TimeControl "5400+30"]

{[%evp 16,84,22,25,7,22,41,13,18,-18,16,-43,0,0,0,-20,-18,-29,0,0,0,0,0,0,0,-206,-212,-269,-254,-268,-265,-248,-141,-180,-176,-247,-254,-462,-461,-441,-460,-454,-427,-452,-463,-439,-417,-709,-713,-1234,-1186,-1615,-1613,-1593,-1595,-1534,-1533,-1527,-1402,-1632,-1503,-5414,-1438,-29965,-29963,-29998,-29986,-29997,-29978,-29990,-29973]} 1. e4 {[%emt 0:00:05]} c5 {[%emt 0:00:08]} 2. Nf3 {[%emt 0:00:08]} e6 {[%emt 0:00:06]} 3. d4 {[%emt 0:00:12]} cxd4 {[%emt 0:00:07]} 4. Nxd4 {[%emt 0:00:24]} Nc6 {[%emt 0:00:07]} 5. Nc3 {[%emt 0:00:54]} Qc7 {[%emt 0:00:05]} 6. Be3 {[%emt 0:00:07]} a6 {[%emt 0:00:07]} 7. Qd2 {[%emt 0:00:54]} Nf6 {[%emt 0:00:12]} 8. f3 {[%emt 0:06:17]} b5 {[%emt 0:00:43]} 9. O-O-O {[%emt 0:01:28]} Be7 {[%emt 0:00:16] B48: Sicilian: Taimanov: 5 Nc3 Qc7 6 Be3 a6 without Be2.} 10. g4 {[%emt 0:02:22] 10.Kb1 is not played anymore.} O-O {[%emt 0:00:27]} 11. h4 {[%emt 0:02:53]} Bb7 {[%emt 0:00:49] [#] The position is equal.} 12. Rg1 $146 {[%emt 0:14:08]} ({Predecessor:} 12. h5 Nxd4 13. Bxd4 e5 14. Be3 d5 15. g5 Nxe4 16. fxe4 d4 17. Nd5 Bxd5 18. exd5 dxe3 19. Qxe3 {0-1 (55) Ismagambetov,A (2492)-Brunello,S (2497) Khanty-Mansiysk 2010}) 12... Rac8 {[%emt 0:06:51]} 13. Qf2 {[%emt 0:06:02]} ({White should play} 13. g5 $11 Nh5 14. Nxc6 Bxc6 15. a3) 13... Ne8 {[%emt 0:28:48]} 14. Nb3 {[%emt 0:03:50]} Ne5 {[%emt 0:04:15]} 15. f4 {[%emt 0:19:17]} b4 $1 {[%emt 0:04:38]} 16. Bb6 {[%emt 0:00:05]} (16. fxe5 $2 bxc3 17. Bd3 (17. bxc3 $2 f6 $19) 17... cxb2+ 18. Kxb2 f6 $19) 16... Bxh4 {[%emt 0:11:38]} (16... Qb8 $5 {[%cal Rb4c3]} 17. Nd5 (17. fxe5 bxc3 18. Kb1 d6 $17) 17... exd5 18. fxe5 f6 $17) 17. Qe3 {[%emt 0:07:32]} Qb8 {[%emt 0:00:52]} 18. Ba7 {[%emt 0:03:47]} Qc7 {[%emt 0:02:59]} 19. Bb6 {[%emt 0:00:10]} Qb8 {[%emt 0:00:04]} 20. Bc5 $2 {[%emt 0:07:13] Black continues to play with concentration.} (20. Ba7 $11 Qc7 21. Bb6) 20... bxc3 $19 {[%emt 0:09:13]} 21. Bxf8 {[%emt 0:00:13]} Kxf8 {[%emt 0:00:43]} 22. fxe5 {[%emt 0:00:38]} Qxe5 {[%emt 0:01:04]} 23. Kb1 {[%emt 0:03:24]} Bg5 {[%emt 0:04:28]} (23... Nf6 $19 24. Qb6 Bxe4 25. Qb4+ Kg8 26. Bxa6 Ra8) 24. Qb6 {[%emt 0:02:35] Black must now prevent Qb4+.} Bxe4 {[%emt 0:01:31] This bishop pair is nice.} (24... Qxe4 25. Bg2 Qxg2 26. Rxg2 Bxg2 27. Rxd7 $18) 25. Bxa6 {[%emt 0:01:54]} (25. Qb4+ $142 Be7 26. Qd4 Qxd4 27. Rxd4) 25... Rc6 $40 {[%emt 0:13:51][%mdl 128] Black has strong attack. The board is on fire.} 26. Qb5 $2 {[%emt 0:00:45] [#]} (26. Qf2) 26... Bxc2+ $1 {[%emt 0:02:25][%mdl 512]} 27. Kxc2 {[%emt 0:00:08] [#]} Qe4+ {[%emt 0:00:07]} ({Not} 27... cxb2+ 28. Kb1 Qe4+ 29. Rd3 $16 (29. Qd3 Nd6 $11)) 28. Qd3 {[%emt 0:00:28]} Qa4 {[%emt 0:01:55]} 29. Bb5 {[%emt 0:00:42]} Qxa2 {[%emt 0:00:42][%csl Gc3][%cal Ra2b2]} 30. Rb1 {[%emt 0:01:15]} Rc7 {[%emt 0:02:01] And now ...cxb2+ would win.} 31. Rg3 {[%emt 0:05:17]} (31. Na5 $142 Qxa5 32. bxc3) 31... cxb2+ {[%emt 0:00:35]} 32. Kd1 {[%emt 0:02:20] [#]} Rc3 $3 {[%emt 0:00:57][%mdl 512]} 33. Nd2 {[%emt 0:01:40]} (33. Qc2 Rxg3) 33... Rxd3 {[%emt 0:01:35]} 34. Bxd3 {[%emt 0:00:05]} Qa4+ {[%emt 0:01:22]} 35. Ke2 {[%emt 0:00:13]} Qf4 {[%emt 0:00:53]} 36. Nf1 {[%emt 0:00:09]} Qe5+ {[%emt 0:00:17]} 37. Kd1 {[%emt 0:00:09]} Nf6 {[%emt 0:00:29] Strongly threatening ...Qd4.} 38. Rg2 {[%emt 0:01:13]} Bc1 {[%emt 0:00:12] aiming for ...Qd4.} 39. Re2 {[%emt 0:00:10]} Qd4 {[%emt 0:00:10] Black mates.} 40. Kc2 {[%emt 0:00:08]} Nd5 {[%emt 0:00:22][%cal Rd4a4]} 41. Be4 {[%emt 0:00:41]} Nc3 {[%emt 0:00:08]} 42. Re1 {[%emt 0:00:16]} Nxe4 {[%emt 0:00:05] Weighted Error Value: White=1.13/Black=0.32} 0-1

[Event "13th KIIT Festival-A 2022"]
[Site "Bhubaneswar"]
[Date "2022.05.28"]
[Round "9.19"]
[White "Rohit S"]
[Black "Shaik Sumer Arsh"]
[Result "1/2-1/2"]
[ECO "C78"]
[WhiteElo "2141"]
[BlackElo "1999"]
[Annotator "TA"]
[PlyCount "77"]
[EventDate "2022.05.15"]
[EventType "swiss"]
[EventCountry "IND"]
[SourceTitle "playchess.com"]
[Source "ChessBase"]
[SourceQuality "1"]
[TimeControl "5400+30"]

{[%evp 17,77,35,32,17,2,3,18,15,14,6,36,-31,26,31,24,7,43,13,17,6,45,35,28,27,104,117,103,-97,-79,-88,-75,-106,0,0,0,0,0,7,18,14,98,86,78,0,0,-16,-16,-16,-16,-18,-18,-18,-18,-18,-18,-18,-18,-18,-18,-18,-21,-41]} 1. e4 {[%emt 0:00:02]} e5 {[%emt 0:00:16]} 2. Nf3 {[%emt 0:00:07]} Nc6 {[%emt 0:00:10]} 3. Bb5 {[%emt 0:00:05][%cal Bf1b5,Bb5a4,Ba4b3][%mdl 32]} a6 {[%emt 0:00:09]} 4. Ba4 {[%emt 0:00:04]} Nf6 {[%emt 0:00:08]} 5. O-O {[%emt 0:00:08]} b5 {[%emt 0:00:06]} 6. Bb3 {[%emt 0:00:01]} Bc5 {[%emt 0:00:14]} 7. a4 {[%emt 0:00:09]} Rb8 {[%emt 0:00:15]} 8. c3 {[%emt 0:00:07]} d6 {[%emt 0:00:07]} 9. d4 {[%emt 0:00:06]} Bb6 {[%emt 0:00:09]} 10. a5 {[%emt 0:00:06] C78: Ruy Lopez: Archangelsk and Möller Defences.} Ba7 {[%emt 0:00:07]} (10... Bxa5 $2 11. dxe5 dxe5 12. Qxd8+ Kxd8 13. Bd5 (13. Bxf7 Bb6 $16) 13... Nxd5 14. exd5 $18) 11. h3 {[%emt 0:00:24]} O-O {[%emt 0:00:57]} 12. Be3 {[%emt 0:00:36]} Ra8 {[%emt 0:09:39] 12...Re8 is the modern continuation.} 13. Nbd2 {[%emt 0:01:33]} Bb7 {[%emt 0:01:47]} 14. Qe2 {[%emt 0:01:54]} (14. Re1 $14) 14... h6 {[%emt 0:05:32]} (14... exd4 $15 15. cxd4 (15. Nxd4 Nxd4 16. Bxd4 c5 $15) 15... Nb4) 15. Rfd1 $11 {[%emt 0:01:51] [#]} exd4 $146 {[%emt 0:13:19]} ({Predecessor:} 15... Re8 16. dxe5 Nxe5 17. Nxe5 Rxe5 18. Bxa7 Rxa7 19. f4 Re7 20. e5 Ra8 21. Nf3 Nh5 {1-0 (40) Swiercz,D (2648)-Durarbayli,V (2626) Saint Louis 2019}) 16. cxd4 {[%emt 0:00:02]} Nb4 {[%emt 0:00:45]} 17. e5 {[%emt 0:03:49]} (17. Rac1 $5 {[%cal Re4e5]}) 17... Nfd5 {[%emt 0:05:27]} 18. Ne4 {[%emt 0:00:02]} Nxe3 {[%emt 0:23:03]} (18... Qe7 $5 {[%cal Rd6e5]}) 19. Qxe3 {[%emt 0:00:26]} dxe5 {[%emt 0:01:12]} 20. Nxe5 {[%emt 0:00:25] Pair of Knights!} Bd5 {[%emt 0:37:08]} (20... Qe7 $1 $11 {keeps the balance.} 21. Nc5 Bxc5 22. dxc5 Rae8) 21. Rac1 $16 {[%emt 0:05:29]} c6 {[%emt 0:00:00]} 22. Qc3 $2 {[%emt 0:23:06]} (22. Bxd5 $16 {keeps the pressure on.} Qxd5 23. Nf6+ gxf6 24. Qxh6) 22... Bxe4 $17 {[%emt 0:00:00]} 23. Qxb4 {[%emt 0:00:32]} Qg5 {[%emt 0:00:00][%csl Ge4][%cal Rg5g2]} 24. g3 {[%emt 0:04:28]} Rad8 {[%emt 0:00:00]} (24... Rae8 $1 $17 {[%cal Re8e5]} 25. Qd6 (25. Nxc6 $2 Qf6 $17) 25... Bxd4 $1 26. Qxd4 Rxe5) 25. Nxc6 {[%emt 0:14:39] Really sharp!} Qh5 {[%emt 0:00:00][%cal Oh5h3]} 26. Re1 $1 {[%emt 0:04:09]} (26. Nxd8 Qxh3 27. f3 Qxg3+ 28. Kf1 Qxf3+ 29. Ke1 Qg3+ 30. Kf1 Qf4+ 31. Kg1 Qg3+ 32. Kf1 Bg2+ 33. Ke2 Bf3+ 34. Ke3 Bxd1+ 35. Kd2 Bxb3 $19) 26... Bxc6 {[%emt 0:00:00]} (26... Qf3 $2 27. Rxe4 Qxe4 {[#]} 28. Bc2 $1 $18 (28. Nxa7 Rxd4 29. Qc5 Rd2 $16) (28. Nxd8 Rxd8 29. Rc7 Qxd4 $16)) 27. Rxc6 {[%emt 0:00:06] Kg2 is the strong threat.} Qxh3 {[%emt 0:00:00]} (27... Bxd4 $5 28. Kg2 (28. Rd6 $2 Bc5 $19) 28... Qf5 $11) 28. Rd6 {[%emt 0:08:56] Active counter play!} Rxd6 {[%emt 0:00:00]} (28... Rc8 $1 $11 {remains equal.}) 29. Qxd6 $16 {[%emt 0:00:02] Black must now prevent Re7.} Qg4 {[%emt 0:00:00]} 30. Rd1 {[%emt 0:11:16]} (30. Qxa6 $16 Qxd4 31. Re3) 30... Qf3 $11 {[%emt 0:00:00] The position is equal.} 31. Qd5 {[%emt 0:05:22]} Qxd5 {[%emt 0:00:00]} 32. Bxd5 {[%emt 0:00:01][%mdl 4096] Endgame KRB-KRB} Rd8 {[%emt 0:00:00]} 33. Bb7 {[%emt 0:00:14]} Bxd4 {[%emt 0:00:00]} 34. Kg2 {[%emt 0:00:34]} Bf6 {[%emt 0:01:30]} 35. Rxd8+ {[%emt 0:00:07]} Bxd8 {[%emt 0:00:01]} 36. b4 {[%emt 0:00:31]} Be7 {[%emt 0:00:00]} 37. Bxa6 {[%emt 0:00:01]} Bxb4 {[%emt 0:00:02]} 38. Bxb5 {[%emt 0:00:01]} Bxa5 {[%emt 0:00:01]} 39. g4 {[%emt 0:00:26] Weighted Error Value: White=0.22 (precise) /Black=0.18 (very precise)} 1/2-1/2

[Event "13th KIIT Festival-A 2022"]
[Site "Bhubaneswar"]
[Date "2022.05.29"]
[Round "10.1"]
[White "Amonatov, Farrukh"]
[Black "Audi Ameya"]
[Result "1/2-1/2"]
[ECO "C92"]
[WhiteElo "2622"]
[BlackElo "2389"]
[Annotator "TA"]
[PlyCount "26"]
[EventDate "2022.05.15"]
[EventType "swiss"]
[EventCountry "IND"]
[SourceTitle "playchess.com"]
[Source "ChessBase"]
[SourceQuality "1"]
[TimeControl "5400+30"]

{[%evp 25,26,0,45]} 1. e4 {[%emt 0:00:02]} e5 {[%emt 0:00:06]} 2. Nf3 {[%emt 0:00:05]} Nc6 {[%emt 0:00:04]} 3. Bb5 {[%emt 0:00:06]} a6 {[%emt 0:00:07]} 4. Ba4 {[%emt 0:00:03]} Nf6 {[%emt 0:00:08]} 5. O-O {[%emt 0:00:06]} Be7 {[%emt 0:00:08]} 6. Re1 {[%emt 0:00:04]} b5 {[%emt 0:00:10]} 7. Bb3 {[%emt 0:00:06]} d6 {[%emt 0:00:07]} 8. c3 {[%emt 0:00:06]} O-O {[%emt 0:00:05]} 9. h3 {[%emt 0:00:08]} Re8 {[%emt 0:00:10] [#]} 10. Ng5 $146 {[%emt 0:00:13]} ({Predecessor:} 10. d4 Bb7 11. Ng5 Rf8 12. Nf3 Re8 13. Ng5 Rf8 14. Nf3 Re8 {½-½ (14) Giri,A (2761)-Maghsoodloo,P (2699) Chess.com INT 2022}) 10... Rf8 {[%emt 0:00:04]} 11. Nf3 {[%emt 0:00:08]} Re8 {[%emt 0:00:02]} 12. Ng5 {[%emt 0:00:11] 12.a3 is a critical line.} Rf8 {[%emt 0:00:03]} 13. Nf3 {[%emt 0:00:11]} Re8 1/2-1/2

[Event "13th KIIT Festival-A 2022"]
[Site "Bhubaneswar"]
[Date "2022.05.29"]
[Round "10.2"]
[White "Mirzoev, Azer"]
[Black "Savchenko, Boris"]
[Result "1/2-1/2"]
[ECO "D02"]
[WhiteElo "2476"]
[BlackElo "2524"]
[Annotator "TA"]
[PlyCount "28"]
[EventDate "2022.05.15"]
[EventType "swiss"]
[EventCountry "IND"]
[SourceTitle "playchess.com"]
[Source "ChessBase"]
[SourceQuality "1"]
[TimeControl "5400+30"]

{[%evp 9,28,0,22,29,16,21,49,46,52,31,51,0,0,0,0,0,0,0,0,0,0]} 1. d4 {[%emt 0:00:04]} Nf6 {[%emt 0:00:05]} 2. Nf3 {[%emt 0:00:03]} g6 {[%emt 0:00:30]} 3. Nbd2 {[%emt 0:00:06]} d5 {[%emt 0:01:47]} 4. e3 {[%emt 0:00:09]} Bg7 {[%emt 0:02:04]} 5. c4 {[%emt 0:00:05]} Nc6 {[%emt 0:06:50]} (5... c5 $5) 6. Be2 {[%emt 0:00:42] D02: 1 d4 d5 2 Nf3 sidelines, including 2...Nf6 3 g3 and 2...Nf6 3 Bf4.} O-O {[%emt 0:00:20]} 7. O-O {[%emt 0:00:05]} a5 {[%emt 0:04:49] [#]} 8. b3 $146 {[%emt 0:00:24] White is slightly better.} ({Predecessor:} 8. cxd5 Nxd5 9. Nc4 Bf5 10. a3 a4 11. Bd2 Nf6 12. Rc1 Ne4 13. Bc3 Qd5 14. Ncd2 Nxc3 15. Rxc3 {½-½ (34) Mirzoev,A (2560)-Rombaldoni,A (2464) Cappelle la Grande 2012}) 8... Bf5 {[%emt 0:11:02]} 9. Bb2 {[%emt 0:01:35]} Nb4 {[%emt 0:01:08]} 10. a3 {[%emt 0:08:30]} (10. cxd5 $14 Nbxd5 11. Ne5) 10... Bc2 $1 $11 {[%emt 0:00:15] The position is equal.} 11. Qc1 {[%emt 0:00:05]} Bd3 {[%emt 0:00:03]} 12. Qd1 {[%emt 0:00:06]} Bc2 $1 {[%emt 0:00:04]} 13. Qc1 {[%emt 0:00:04]} Bd3 {[%emt 0:00:03]} 14. Qd1 {[%emt 0:00:10]} Bc2 $1 {[%emt 0:00:40] Weighted Error Value: White=0.09 (flawless) /Black=0.08 (flawless)} 1/2-1/2

[Event "13th KIIT Festival-A 2022"]
[Site "Bhubaneswar"]
[Date "2022.05.29"]
[Round "10.3"]
[White "Azaladze, Shota"]
[Black "Stupak, Kirill"]
[Result "1/2-1/2"]
[ECO "A01"]
[WhiteElo "2420"]
[BlackElo "2440"]
[Annotator "TA"]
[PlyCount "147"]
[EventDate "2022.05.15"]
[EventType "swiss"]
[EventCountry "IND"]
[SourceTitle "playchess.com"]
[Source "ChessBase"]
[SourceQuality "1"]
[TimeControl "5400+30"]

{[%evp 9,147,0,3,6,0,0,4,0,17,5,32,12,42,18,15,14,17,9,54,-6,-10,-56,-60,-71,-71,-84,-78,-84,-79,-72,-73,-104,-76,-122,-66,-86,-72,-87,-84,-91,-85,-79,-35,-36,-22,-15,-18,-34,-17,-19,-12,-13,-14,-22,-17,-17,0,-41,-21,-106,-104,-124,-137,-119,-117,-94,-103,-181,-18,-3,-16,-25,0,0,0,0,0,0,0,0,0,0,0,0,0,0,0,0,0,0,0,0,0,0,0,-8,-8,-8,-8,-8,-8,-8,-8,-8,-8,-8,-8,-8,0,0,0,0,0,0,8,8,8,0,0,0,0,8,8,8,8,0,8,0,0,0,0,0,0,-8,8,8,8,8,8,8]} 1. b3 {[%emt 0:00:04]} d5 {[%emt 0:06:00]} 2. Bb2 {[%emt 0:00:23]} Bg4 {[%emt 0:00:06]} 3. g3 {[%emt 0:00:46]} Nd7 {[%emt 0:03:13]} 4. Bg2 {[%emt 0:00:07]} Ngf6 {[%emt 0:00:09]} 5. Nf3 {[%emt 0:01:43]} e6 {[%emt 0:00:08]} 6. d3 {[%emt 0:00:10] A01: Nimzowitsch-Larsen Opening.} a5 {[%emt 0:08:45]} 7. a3 {[%emt 0:00:50]} Be7 {[%emt 0:01:46]} 8. Nbd2 {[%emt 0:00:12]} O-O {[%emt 0:00:08]} 9. O-O {[%emt 0:00:58] [#]} Nc5 $146 {[%emt 0:07:48]} ({Predecessor:} 9... c5 10. e4 a4 11. h3 Bh5 12. Qe2 axb3 13. cxb3 h6 14. Rfc1 Bg6 15. Nh4 Bh7 {1-0 (49) Ladron de Guevara Pinto,P (2369)-Huerga Leache,M (2455) Linares 2016}) 10. Qe1 {[%emt 0:02:16]} Nfd7 {[%emt 0:04:28]} 11. e4 {[%emt 0:00:16]} c6 {[%emt 0:00:08]} 12. Qe3 {[%emt 0:01:22]} Bh5 {[%emt 0:02:08]} 13. Nd4 {[%emt 0:02:21]} Bf6 {[%emt 0:07:35]} 14. Rab1 {[%emt 0:03:20]} (14. f4 $14) 14... e5 $36 {[%emt 0:10:36][%mdl 2048] Black has the initiative.} 15. N4f3 {[%emt 0:00:50]} (15. Nf5 $11) 15... d4 $15 {[%emt 0:01:09]} 16. Qe1 {[%emt 0:00:03]} b5 {[%emt 0:01:18]} 17. h3 {[%emt 0:00:57][%cal Of3d4]} Qc7 {[%emt 0:02:09]} 18. Nh2 {[%emt 0:00:04]} Ne6 {[%emt 0:00:43] Prevents f4.} 19. h4 {[%emt 0:00:13][%cal Of2f4]} h6 $1 {[%emt 0:02:50]} 20. Bh3 {[%emt 0:00:47]} Be7 {[%emt 0:01:39]} 21. Ng4 {[%emt 0:08:34]} (21. Ndf3 $142) 21... Bd6 {[%emt 0:03:14]} (21... a4 $17 22. Qc1 Ra6) 22. Qe2 {[%emt 0:03:03][%cal Og4h6] Strongly threatening Nxh6+!} Kh8 {[%emt 0:00:53]} 23. Nf3 {[%emt 0:01:12]} a4 {[%emt 0:01:49]} 24. b4 {[%emt 0:00:09] [#]} c5 $1 {[%emt 0:00:10]} 25. c3 {[%emt 0:02:43]} cxb4 {[%emt 0:02:21]} 26. cxb4 {[%emt 0:00:17]} Rac8 {[%emt 0:00:02]} 27. Rbc1 {[%emt 0:00:58]} Qb8 {[%emt 0:00:07]} 28. Kg2 {[%emt 0:03:17]} Rxc1 {[%emt 0:02:50]} 29. Rxc1 {[%emt 0:00:16]} Rc8 {[%emt 0:00:10]} 30. Qd2 {[%emt 0:00:23]} Kh7 {[%emt 0:03:38]} 31. Rc2 {[%emt 0:04:42]} Rxc2 {[%emt 0:00:54]} 32. Qxc2 {[%emt 0:00:02]} Qc7 {[%emt 0:00:24]} 33. Qb1 {[%emt 0:00:49]} Nd8 {[%emt 0:02:04]} 34. Qa2 {[%emt 0:05:05]} (34. Qc1 $11) 34... Bxg4 $17 {[%emt 0:08:31]} 35. Bxg4 {[%emt 0:00:13]} Nf6 {[%emt 0:00:02]} 36. Bh3 {[%emt 0:02:14]} Qc2 {[%emt 0:00:01]} 37. Ne1 {[%emt 0:00:13]} ({Not} 37. Bf5+ $2 g6 38. Bh3 Qxd3 $19) 37... Qe2 {[%emt 0:00:02]} 38. Qb1 {[%emt 0:00:16] [#]} (38. Qa1 $17 {keeps fighting.}) 38... Ng4 $2 {[%emt 0:00:01]} ({Black should try} 38... h5 $1 $19 {White must now prevent ...Ng4.} 39. Nf3 Ng4 40. Bxd4 exd4 41. Bxg4 hxg4 42. Nxd4 Qd2) 39. Bxg4 $11 {[%emt 0:00:36]} Qxg4 {[%emt 0:00:02]} 40. Qc2 {[%emt 0:02:09]} Qd7 {[%emt 0:00:09]} 41. Bc1 {[%emt 0:00:50] The position is equal.} Qc6 {[%emt 0:00:13]} 42. h5 {[%emt 0:00:52]} Qxc2 {[%emt 0:07:20]} 43. Nxc2 {[%emt 0:00:06][%mdl 4096] Endgame KBN-KBN} Ne6 {[%emt 0:00:02]} 44. Kh3 {[%emt 0:01:07]} g6 {[%emt 0:00:06]} 45. Kg4 {[%emt 0:00:45]} Ng7 {[%emt 0:08:40]} 46. hxg6+ {[%emt 0:00:30]} Kxg6 {[%emt 0:00:03]} 47. f4 {[%emt 0:06:49]} h5+ {[%emt 0:00:01]} 48. Kf3 {[%emt 0:00:18]} f5 {[%emt 0:00:01]} 49. fxe5 {[%emt 0:02:29]} Bxe5 {[%emt 0:00:05]} 50. Bf4 {[%emt 0:02:30]} Kf6 {[%emt 0:00:49]} 51. Ne1 {[%emt 0:03:10]} Ne6 {[%emt 0:01:23]} 52. Ng2 {[%emt 0:00:03]} Ng5+ {[%emt 0:02:39]} 53. Bxg5+ {[%emt 0:00:44]} Kxg5 {[%emt 0:00:01]} 54. exf5 {[%emt 0:05:30]} Kxf5 {[%emt 0:00:02] KB-KN} 55. Nh4+ {[%emt 0:00:09]} Kg5 {[%emt 0:00:31]} 56. Kg2 {[%emt 0:00:20] Nf3+ is the strong threat.} Kg4 {[%emt 0:02:54]} 57. Nf3 {[%emt 0:00:13]} Bxg3 {[%emt 0:00:25] Hoping for ...Bd6.} 58. Nxd4 {[%emt 0:00:08]} h4 {[%emt 0:00:01]} 59. Nxb5 {[%emt 0:00:14]} h3+ {[%emt 0:00:05]} 60. Kh1 {[%emt 0:00:46]} Kf3 {[%emt 0:00:31]} 61. Nd4+ {[%emt 0:05:05]} Kg4 {[%emt 0:00:00]} 62. Ne6 {[%emt 0:18:04]} Kf3 {[%emt 0:01:03]} 63. Nd4+ {[%emt 0:07:41]} Kg4 {[%emt 0:00:01]} 64. Nb5 {[%emt 0:00:10]} Kf3 {[%emt 0:00:44]} 65. Nc3 {[%emt 0:00:08]} Ke3 {[%emt 0:00:44]} 66. Nxa4 {[%emt 0:04:31]} Kxd3 {[%emt 0:00:02]} 67. Nb6 {[%emt 0:00:06]} Bd6 {[%emt 0:00:33]} 68. Kg1 {[%emt 0:02:29]} Kc3 {[%emt 0:00:17]} 69. Nd5+ {[%emt 0:00:20]} Kb3 {[%emt 0:00:05]} 70. b5 {[%emt 0:00:08]} Kxa3 {[%emt 0:00:02]} 71. b6 {[%emt 0:00:07]} Bc5+ {[%emt 0:00:02]} 72. Kh2 {[%emt 0:00:05]} Bxb6 {[%emt 0:00:03]} 73. Nxb6 {[%emt 0:00:05]} Kb4 {[%emt 0:00:01]} 74. Kxh3 {[%emt 0:00:03] Weighted Error Value: White=0.13 (very precise) /Black=0.12 (very precise)} 1/2-1/2

[Event "13th KIIT Festival-A 2022"]
[Site "Bhubaneswar"]
[Date "2022.05.29"]
[Round "10.4"]
[White "Paichadze, Luka"]
[Black "Aleksandrov, Aleksej"]
[Result "1/2-1/2"]
[ECO "C47"]
[WhiteElo "2567"]
[BlackElo "2492"]
[Annotator "TA"]
[PlyCount "61"]
[EventDate "2022.05.15"]
[EventType "swiss"]
[EventCountry "IND"]
[SourceTitle "playchess.com"]
[Source "ChessBase"]
[SourceQuality "1"]
[TimeControl "5400+30"]

{[%evp 17,61,12,8,0,0,0,3,0,-4,-22,16,13,8,0,3,5,4,-7,-8,-7,-14,-13,-20,-7,-11,-10,0,0,0,0,0,0,0,0,0,0,0,0,0,0,0,0,0,0,0,0]} 1. e4 {[%emt 0:00:02]} e5 {[%emt 0:00:04]} 2. Nf3 {[%emt 0:00:04]} Nc6 {[%emt 0:00:04]} 3. d4 {[%emt 0:00:05]} exd4 {[%emt 0:00:05]} 4. Nxd4 {[%emt 0:00:03]} Nf6 {[%emt 0:00:08]} 5. Nc3 {[%emt 0:00:27]} Bb4 {[%emt 0:00:11]} 6. Nxc6 {[%emt 0:00:07]} bxc6 {[%emt 0:00:04]} 7. Bd3 {[%emt 0:00:08]} d5 {[%emt 0:00:04]} 8. exd5 {[%emt 0:00:45]} O-O {[%emt 0:00:07] The modern move.} 9. O-O {[%emt 0:00:22]} cxd5 {[%emt 0:00:06] The position is equal.} 10. h3 {[%emt 0:00:09] Against Bg4. C47: Scotch Four Knights and Four Knights with 4 g3.} c6 {[%emt 0:01:48]} 11. Qf3 {[%emt 0:03:35]} Bd6 {[%emt 0:06:36]} 12. Ne2 {[%emt 0:05:17]} Nd7 {[%emt 0:04:43][%cal Bf6d7,Bd7e5,Be5d3][%mdl 32]} 13. Bf4 {[%emt 0:02:09]} Qf6 {[%emt 0:02:07]} (13... Ne5 $5 {[%cal Re5f3]} 14. Qg3 (14. Bxh7+ Kxh7 15. Qh5+ Kg8 $15) 14... Re8 $11) 14. Bxd6 {[%emt 0:01:51]} ({But not} 14. Qh5 g6 15. Qh6 Ne5 $15) 14... Qxd6 {[%emt 1:21:23] [#]} 15. Nd4 $146 {[%emt 0:01:34]} ({Predecessor:} 15. c3 Ne5 16. Qg3 Rd8 17. Bc2 Ba6 18. Rfe1 c5 {½-½ (18) Arnhold,S (2061)-Bauer,S (2312) Innsbruck 2021}) 15... Ne5 {[%emt 0:00:00]} 16. Qg3 {[%emt 0:00:50][%cal Od4c6]} Qf6 {[%emt 0:00:00]} 17. b4 {[%emt 0:04:33]} a5 {[%emt 0:00:00]} 18. a3 {[%emt 0:07:40]} Nxd3 {[%emt 0:00:00]} 19. Qxd3 {[%emt 0:00:07]} Ba6 {[%emt 0:00:00]} 20. b5 {[%emt 0:00:08]} cxb5 {[%emt 0:00:00]} 21. Nxb5 {[%emt 0:00:04]} Bxb5 {[%emt 0:00:00]} (21... Rac8 {seems wilder.} 22. Rab1 Rc5 23. a4 Qf4) 22. Qxb5 {[%emt 0:00:07]} d4 {[%emt 0:00:00]} 23. Rfd1 {[%emt 0:01:37]} g6 {[%emt 0:00:00]} 24. Qa4 {[%emt 0:00:52]} Rac8 {[%emt 0:00:00][%cal Ba8c8,Bc8c3,Bc3h3][%mdl 32]} 25. Rac1 {[%emt 0:01:31]} Rc3 {[%emt 0:00:00]} 26. Rxd4 {[%emt 0:27:57]} Rxh3 {[%emt 0:00:00]} 27. Rcd1 {[%emt 0:09:40][%cal Bc1d1,Bd1d4,Bd4d5][%mdl 32]} Rh5 {[%emt 0:00:00]} 28. Rd5 {[%emt 0:03:20]} Rf5 {[%emt 0:00:00]} 29. Qd4 {[%emt 0:11:33]} Qxd4 {[%emt 0:00:00]} 30. R1xd4 {[%emt 0:00:06]} Rxd5 {[%emt 0:00:00]} 31. Rxd5 {[%emt 0:00:04] An interesting draw.  Weighted Error Value: White=0.02 (flawless) /Black=0.02 (flawless)} 1/2-1/2